Cogmind - Beta 12 @@@ ROGUE MODE // 2023.03.02 @ 21:27:29 Player: ChromeKnight Result: Destroyed by B-48 Gladiator with Mace Performance ------------- Evolutions (3) 1500 Regions Visited (12) 2400 Robots Destroyed (60) 300 Value Destroyed (3575) 3575 Prototype IDs (26) 520 Alien Tech Used (0) 0 Bonus (3958) 3958 TOTAL SCORE: 12253 Bonus ------- High Alert Combat Kills 506 Follower Combat Kills 1218 Entered Garrisons 600 Used RIF Installer 1500 Aligned with FarCom 300 Friendly Fire -166 Cogmind --------- Core Integrity 0/700 Matter 300/300 Energy 100/100 System Corruption 7% Temperature Cool (0) Movement Core (50) Location -7/Garrison Parts ------- > --- POWER (2) -------- (None) > --- PROPULSION (4) --- (None) > --- UTILITY (5) ------ (None) > --- WEAPON (2) ------- (None) > --- INVENTORY (5) ---- Authchip [R/Combat] Relay Coupler [NC] (27) Relay Coupler [Hunter] (20) Remote Datajack Peak State ------------ > --- POWER ------------ Micro Nuclear Core > --- PROPULSION ------- Carbon-fiber Leg Gyrokinetic Inverter Gyrokinetic Inverter > --- UTILITY ---------- Advanced Cooling System Target Analyzer Advanced Hacking Suite Mini Drone Bay > --- WEAPON ----------- Wave Gun Improved Remote Datajack > --- INVENTORY -------- Relay Coupler [Grunt] Relay Coupler [Duelist] Tesla Rifle Tesla Rifle Remote Datajack [Rating: 54] Favorites ----------- Power Micro Nuclear Core Engine Light Ion Engine Power Core Micro Nuclear Core Propulsion Gyrokinetic Inverter Leg Carbon-fiber Leg Hover Unit Gyrokinetic Inverter Flight Unit Surge Thruster Utility Relay Coupler [NC] Device Advanced Cooling System Storage Medium Storage Unit Processor Target Analyzer Hackware Relay Coupler [NC] Protection Light Armor Plating Weapon Katana Energy Gun Tesla Rifle Ballistic Gun Gauss Rifle Launcher Mini Grenade Launcher Special Weapon Remote Datajack Slashing Weapon Katana Build | -11 -10 -10 -10 -9 -8 -8 -8 -8 -7 -7 -7 -7 ------- Run | Jun Mat Min Exi Min Mat Gar Mat Gar Fac Was Fac Gar Slots Evolved 6 | . . . . . 4 . . . 2 . . . Power 1 | . . . . . . . . . 1 . . . Propulsion 2 | . . . . . 2 . . . . . . . Utility 3 | . . . . . 2 . . . 1 . . . Weapon . | . . . . . . . . . . . . . Parts Attached 107 | 6 5 6 12 1 2 28 4 17 5 . 10 11 Power 18 | 1 . 2 2 . . 6 . 3 1 . 2 1 Engine 7 | 1 . 2 1 . . 1 . . 1 . . 1 Core 11 | . . . 1 . . 5 . 3 . . 2 . Reactor . | . . . . . . . . . . . . . Propulsion 28 | 2 2 2 2 . 2 8 1 5 1 . 2 1 Treads . | . . . . . . . . . . . . . Leg 7 | 2 . . . . . 2 1 . 1 . . 1 Wheel . | . . . . . . . . . . . . . Hover 17 | . 2 2 2 . 2 6 . 1 . . 2 . Flight 4 | . . . . . . . . 4 . . . . Utility 29 | . 1 1 3 . . 10 2 3 3 . 3 3 Device 6 | . 1 1 . . . 2 . 1 . . 1 . Storage 2 | . . . . . . . . . 2 . . . Processor 7 | . . . 2 . . 4 . . . . 1 . Hackware 10 | . . . 1 . . 1 2 2 1 . . 3 Protection 4 | . . . . . . 3 . . . . 1 . Artifact . | . . . . . . . . . . . . . Weapon 32 | 3 2 1 5 1 . 4 1 6 . . 3 6 Energy Gun 12 | 2 . 1 . . . 1 . 3 . . 3 2 Energy Cannon . | . . . . . . . . . . . . . Ballistic Gun 9 | 1 2 . 4 1 . . . 1 . . . . Ballistic Cannon . | . . . . . . . . . . . . . Launcher 1 | . . . 1 . . . . . . . . . Special Weapon 7 | . . . . . . 1 1 2 . . . 3 Impact Weapon . | . . . . . . . . . . . . . Slashing Weapon 3 | . . . . . . 2 . . . . . 1 Piercing Weapon . | . . . . . . . . . . . . . Special Melee Weapon . | . . . . . . . . . . . . . Unidentified Prototypes 3 | . . . . . . . . . 1 . 2 . Parts Lost 40 | . . 1 3 . . 16 1 5 1 3 1 9 Power 9 | . . 1 . . . 3 . 2 . 1 . 2 Propulsion 16 | . . . 1 . . 8 . 2 1 . . 4 Utility 6 | . . . 1 . . 3 . . . 1 1 . Weapon 9 | . . . 1 . . 2 1 1 . 1 . 3 Highest Loss Streak 6 | . . 1 2 . . 6 1 2 1 3 1 3 To Critical Strikes . | . . . . . . . . . . . . . Average Slot Usage (%) 84 | . 79 90 90 100 81 88 84 77 72 80 85 77 Engine 2 | . 14 13 11 . . . . . 5 . . . Core 7 | . . . 2 14 9 7 9 8 1 6 11 10 Leg 1 | . 20 . . . . 1 3 . 6 6 . . Hover 22 | . 7 28 27 28 36 29 18 18 15 15 23 16 Device 4 | . 9 27 10 . . . 10 6 . . . . Processor 8 | . . . 6 14 9 17 7 . . . 6 6 Hackware 15 | . . . 9 14 9 8 17 27 25 30 27 21 Protection 2 | . . . . . . 6 . . . . 1 6 Energy Gun 5 | . 13 8 4 . . . 9 10 1 7 12 7 Ballistic Gun 3 | . 14 11 12 28 18 4 . . . . . . Special Weapon 2 | . . . . . . . 9 7 7 6 . 2 Slashing Weapon 4 | . . . . . . 12 . . . . . 2 Naked Turns 26 | . . . . . . . . . . . . 26 Heaviest Build 23 | 7 8 17 14 14 14 19 19 17 23 21 22 22 Greatest Support 42 | 20 20 14 24 24 42 42 22 22 22 22 36 36 Greatest Overweight (x) 4 | . . 1 . . . 1 . 4 1 . . 1 Average Overweight (x) . | . . . . . . . . . . . . . Largest Inventory Capacity 15 | 5 5 5 5 5 5 5 5 5 15 10 5 5 Average Capacity 5 | 5 5 5 5 5 5 5 5 5 9 9 5 5 Most Carried 9 | 1 5 5 5 5 4 5 5 5 9 9 5 5 Average Carried 4 | . 3 4 3 4 2 3 4 4 6 8 5 4 Final Capacity 10 | 5 5 5 5 5 5 5 5 5 10 5 5 5 Final Carried 9 | 1 5 4 5 5 2 5 5 5 9 5 5 4 Class Distribution -------------------- 41% | Scavenger-Mutant 34% | Bothacker-Mutant 24% | Mutant Dominant Class ---------------- Mutant | -10/Materials Mutant | -10/Mines Scavenger-Mutant | -10/Exiles Scavenger-Mutant | -9/Mines Scavenger-Mutant | -8/Materials Scavenger-Mutant | -8/Garrison Mutant | -8/Materials Bothacker-Mutant | -8/Garrison Bothacker-Mutant | -7/Factory Bothacker-Mutant | -7/Waste Bothacker-Mutant | -7/Factory Bothacker-Mutant | -7/Garrison Resources | -11 -10 -10 -10 -9 -8 -8 -8 -8 -7 -7 -7 -7 ----------- Run | Jun Mat Min Exi Min Mat Gar Mat Gar Fac Was Fac Gar Matter Collected 1824 | 245 45 102 156 38 . 572 48 236 5 97 101 179 Remotely . | . . . . . . . . . . . . . Salvage Created 2390 | . 113 199 56 23 . 1293 79 272 . . 35 320 Parts 137 | . 10 8 1 4 . 82 8 14 . . 3 7 Haulers Intercepted . | . . . . . . . . . . . . . Recyclers Shooed 3 | . 1 2 . . . . . . . . . . Parts Field Recycled . | . . . . . . . . . . . . . Retrieved Matter . | . . . . . . . . . . . . . Parts Self-Destructed . | . . . . . . . . . . . . . Prevented . | . . . . . . . . . . . . . Kills | -11 -10 -10 -10 -9 -8 -8 -8 -8 -7 -7 -7 -7 ------- Run | Jun Mat Min Exi Min Mat Gar Mat Gar Fac Was Fac Gar Combat Hostiles Destroyed 70 | . 4 7 2 . . 28 3 8 . . . 18 Melee 35 | . . . . . . 21 . . . . . 14 Guns 35 | . 4 7 2 . . 7 3 8 . . . 4 Classes Destroyed 13 | . 3 1 2 1 . 3 . 2 . . . 1 Tunneler 1 | . . . . 1 . . . . . . . . Recycler 1 | . . 1 . . . . . . . . . . Operator 1 | . 1 . . . . . . . . . . . Watcher 2 | . . . . . . . . 1 . . 1 . Swarmer 23 | . 3 7 . . . 7 2 3 . . . 1 Cutter 2 | . . . . . . . . 2 . . . . Grunt 7 | . 1 . . . . 2 1 2 . . . 1 Brawler 3 | . . . 1 . . 1 . 1 . . . . Duelist 3 | . . . . . . 3 . . . . . . Sentry 9 | . . . . . . 8 . . . . . 1 Hunter 2 | . . . . . . 2 . . . . . . Programmer 6 | . . . 1 . . 5 . . . . . . Assembled 16 | . . . . . . . . . . . . 16 Best Kill Streak 7 | . 3 3 1 1 . 4 2 2 . . 1 7 Combat Bots Only 7 | . 3 3 1 . . 4 2 2 . . . 7 Max Kills in Single Turn 1 | . 1 1 1 1 . 1 1 1 . . 1 1 Gunslinging . | . . . . . . . . . . . . . Exploded . | . . . . . . . . . . . . . Melee 1 | . . . . . . 1 . . . . . 1 Uniques/NPCs Destroyed . | . . . . . . . . . . . . . Combat | -11 -10 -10 -10 -9 -8 -8 -8 -8 -7 -7 -7 -7 -------- Run | Jun Mat Min Exi Min Mat Gar Mat Gar Fac Was Fac Gar Damage Taken 4466 | . 111 222 524 . 92 1170 381 628 43 53 73 1169 Core 1403 | . 6 50 120 . . 191 96 214 10 38 . 678 Absorbed by Shields 25 | . . . . . . . . . . . . 25 Redirected to Shielding 11 | . . . . . . 11 . . . . . . Core Remaining (%) 45 | 100 . . . 29 . . . 8 . . . . Volleys Fired 232 | . 13 25 14 3 1 52 17 53 3 6 2 43 Largest 2 | . 2 2 1 2 2 2 1 2 1 1 2 2 Hottest 130 | . 90 75 28 56 56 56 81 130 5 50 40 120 Shots Fired 285 | . 26 33 14 6 2 68 18 60 3 7 4 44 Gun 264 | . 26 33 14 6 2 68 15 55 . 4 4 37 Cannon . | . . . . . . . . . . . . . Launcher . | . . . . . . . . . . . . . Special 21 | . . . . . . . 3 5 3 3 . 7 Kinetic 119 | . 6 16 14 6 2 68 . 7 . . . . Thermal 103 | . 10 17 . . . . 15 16 . 4 4 37 Explosive . | . . . . . . . . . . . . . Electromagnetic 42 | . 10 . . . . . . 32 . . . . Robot Hit Streak 9 | . 5 4 4 5 . 7 9 8 2 3 2 6 Robot Miss Streak 6 | . 6 3 3 3 2 5 1 4 1 1 2 1 Penetration Max . | . . . . . . . . . . . . . Secondary Targets . | . . . . . . . . . . . . . Shots Hit Robots 211 | . 13 17 7 2 . 83 8 32 2 5 2 40 Core Hits 96 | . 8 10 3 1 . 36 4 11 . 1 2 20 Critical Kills . | . . . . . . . . . . . . . Critical Parts Destroyed . | . . . . . . . . . . . . . Critical Strikes 14 | . . . . . . 8 1 3 . . . 2 Burn 5 | . . . . . . . 1 2 . . . 2 Corrupt 1 | . . . . . . . . 1 . . . . Sever 8 | . . . . . . 8 . . . . . . Melee Attacks 135 | . . . . . . 100 . . . . . 35 Impact . | . . . . . . . . . . . . . Slashing 135 | . . . . . . 100 . . . . . 35 Piercing . | . . . . . . . . . . . . . Sneak Attacks 4 | . . . . . . 4 . . . . . . Combat Hostiles 4 | . . . . . . 4 . . . . . . Follow-up Attacks 5 | . . . . . . 5 . . . . . . Damage Inflicted 5337 | . 169 283 163 38 . 2515 167 565 . 57 56 1324 Guns 2394 | . 169 283 163 38 . 653 167 565 . 57 56 243 Cannons . | . . . . . . . . . . . . . Explosions . | . . . . . . . . . . . . . Melee 2940 | . . . . . . 1862 . . . . . 1078 Ramming 3 | . . . . . . . . . . . . 3 Kinetic 968 | . 26 51 163 38 . 653 . 37 . . . . Thermal 1099 | . 38 232 . . . . 167 306 . 57 56 243 Explosive . | . . . . . . . . . . . . . Electromagnetic 327 | . 105 . . . . . . 222 . . . . Impact . | . . . . . . . . . . . . . Slashing 2940 | . . . . . . 1862 . . . . . 1078 Piercing . | . . . . . . . . . . . . . Highest Corruption 11 | . . . 3 3 . 2 2 3 1 10 11 7 Average Corruption 2 | . . . 1 3 . 1 2 2 1 8 6 7 Corruption Purged 5 | . . . . . . . . . . . 5 . Corruption Blocked . | . . . . . . . . . . . . . Effects 89 | . . . 2 1 . 15 8 22 5 4 12 20 Message Errors 24 | . . . 1 . . 4 3 4 1 . 4 7 Matter Fused 16 | . . . . . . 2 2 3 3 1 2 3 Heat Flow Errors 9 | . . . . 1 . 1 2 3 1 . 1 . Energy Discharges 10 | . . . 1 . . 2 . 4 . . 1 2 Parts Fused 1 | . . . . . . . . . . . . 1 Data Loss (minor) 12 | . . . . . . 4 . 4 . . 1 3 Data Loss (major) 5 | . . . . . . 2 . 1 . . 2 . Misfires 6 | . . . . . . . 1 3 . 1 . 1 Alerts 2 | . . . . . . . . . . . 1 1 Misdirections 2 | . . . . . . . . . . 2 . . Weapon Failures 2 | . . . . . . . . . . . . 2 Overload Shots 4 | . . . . . . . . . . . . 4 Overflow Damage 161 | . . . . . . 23 . . . . . 138 Projectiles . | . . . . . . . . . . . . . Explosions . | . . . . . . . . . . . . . Melee 161 | . . . . . . 23 . . . . . 138 Knockbacks . | . . . . . . . . . . . . . Impact . | . . . . . . . . . . . . . Kinetic . | . . . . . . . . . . . . . Secondary . | . . . . . . . . . . . . . Self-Inflicted Damage . | . . . . . . . . . . . . . Shots . | . . . . . . . . . . . . . Rammed 1 | . . . . . . . . . . . . 1 Targets Rammed 2 | . . . . . . . . . . . . 2 Kicked 1 | . . . . . . . . . . . . 1 Crushed . | . . . . . . . . . . . . . Highest Temperature 309 | . 102 155 . 106 . 173 240 240 206 42 309 101 Average Temperature 82 | . 46 63 . 56 . 55 70 56 108 20 135 42 Received Heat Transfer 719 | . 12 . . . . 198 171 63 6 . 27 242 Effects 5 | . . . . . . . . . . . 5 . Energy Bleed 2 | . . . . . . . . . . . 2 . Interference 3 | . . . . . . . . . . . 3 . Siege Activations . | . . . . . . . . . . . . . Robots Corrupted . | . . . . . . . . . . . . . Combat Hostiles . | . . . . . . . . . . . . . Parts Fried . | . . . . . . . . . . . . . Impact Corruptions . | . . . . . . . . . . . . . Robots Melted . | . . . . . . . . . . . . . Combat Hostiles . | . . . . . . . . . . . . . Parts Melted 5 | . . 1 . . . . . 3 . . . 1 Heat Transferred 2312 | . 111 407 . . . . 333 629 . 111 111 610 Parts Sabotaged . | . . . . . . . . . . . . . Parts Stolen . | . . . . . . . . . . . . . Parts Stripped . | . . . . . . . . . . . . . Power Chain Reactions . | . . . . . . . . . . . . . Missiles Intercepted . | . . . . . . . . . . . . . Alert | -11 -10 -10 -10 -9 -8 -8 -8 -8 -7 -7 -7 -7 ------- Run | Jun Mat Min Exi Min Mat Gar Mat Gar Fac Was Fac Gar Peak Influence 1763 | . 135 167 . 5 16 1763 1067 1233 672 195 152 420 Initial 859 | . . 52 . . 1 10 859 629 646 165 115 31 Average 570 | . 84 79 . 2 1 587 948 865 620 181 118 302 Maximum Alert Level 5 | . . . . . . 5 3 4 2 . . 2 Low Security (%) 32 | 100 100 100 . 100 100 33 . . . 100 100 27 Level 1 9 | . . . . . . 17 . . . . . 35 Level 2 16 | . . . . . . 13 . 11 100 . . 37 Level 3 30 | . . . . . . 13 100 78 . . . . Level 4 8 | . . . . . . 16 . 10 . . . . Level 5 2 | . . . . . . 5 . . . . . . High Security . | . . . . . . . . . . . . . Max Security . | . . . . . . . . . . . . . Squads Dispatched 6 | . 1 . . . 1 . 3 . . . 1 . Investigation 3 | . . . . . 1 . 1 . . . 1 . Extermination . | . . . . . . . . . . . . . Reinforcement 2 | . 1 . . . . . 1 . . . . . Assault 1 | . . . . . . . 1 . . . . . Garrison . | . . . . . . . . . . . . . Intercept . | . . . . . . . . . . . . . Searches Triggered . | . . . . . . . . . . . . . Construction Impeded . | . . . . . . . . . . . . . Haulers Reinforced . | . . . . . . . . . . . . . Active Scanning Responses . | . . . . . . . . . . . . . Cargo Convoy Interrupts . | . . . . . . . . . . . . . Alert ID Control Effect 1 | . . . . . . . . . . . . 1 Stealth | -11 -10 -10 -10 -9 -8 -8 -8 -8 -7 -7 -7 -7 --------- Run | Jun Mat Min Exi Min Mat Gar Mat Gar Fac Was Fac Gar Distress Signals 10 | . . . . . 1 . 6 3 . . . . Communications Jammed . | . . . . . . . . . . . . . Distress Signals . | . . . . . . . . . . . . . Times Spotted 180 | . 5 9 36 . 5 28 22 19 2 5 5 44 Peak Tracking Total 13 | . 3 3 13 . 7 4 10 5 1 4 3 11 Tactical Retreats 23 | . . 1 3 . 1 3 5 2 . . 1 7 Traps | -11 -10 -10 -10 -9 -8 -8 -8 -8 -7 -7 -7 -7 ------- Run | Jun Mat Min Exi Min Mat Gar Mat Gar Fac Was Fac Gar Traps Triggered 19 | . . . . . 1 8 . 3 2 . 3 2 Indirectly . | . . . . . . . . . . . . . Trap Hack Attempts . | . . . . . . . . . . . . . Triggered . | . . . . . . . . . . . . . Disarmed . | . . . . . . . . . . . . . Reprogrammed . | . . . . . . . . . . . . . Reused 1 | . . 1 . . . . . . . . . . Traps Extracted . | . . . . . . . . . . . . . Installed 4 | . . 4 . . . . . . . . . . Triggered 1 | . . 1 . . . . . . . . . . Most Traps Carried 2 | . . 2 1 . . . . . . . . . Exploded 3 | . . . 3 . . . . . . . . . Machines | -11 -10 -10 -10 -9 -8 -8 -8 -8 -7 -7 -7 -7 ---------- Run | Jun Mat Min Exi Min Mat Gar Mat Gar Fac Was Fac Gar Machines Disabled 12 | . . . . . . 6 1 3 . . . 2 Max in Single Turn 2 | . . . . . . 1 1 2 . . . 1 Garrison Relay 8 | . . . . . . 6 . 1 . . . 1 Phase Generator 1 | . . . . . . . . 1 . . . . Machines Repaired . | . . . . . . . . . . . . . Machines Sabotaged . | . . . . . . . . . . . . . Overloaded Fab Kills . | . . . . . . . . . . . . . Hacking | -11 -10 -10 -10 -9 -8 -8 -8 -8 -7 -7 -7 -7 --------- Run | Jun Mat Min Exi Min Mat Gar Mat Gar Fac Was Fac Gar Machines Accessed 15 | . . . 1 . 1 2 3 1 1 . 5 1 Terminals 8 | . . . . . . 2 2 1 . . 2 1 Fabricators 1 | . . . . . . . . . . . 1 . Repair Stations 2 | . . . . . . . . . 1 . 1 . Recycling Units . | . . . . . . . . . . . . . Scanalyzers . | . . . . . . . . . . . . . Garrison Access 3 | . . . . . 1 . 1 . . . 1 . Total Hacks 23 | . . . 1 . 1 2 5 1 2 . 8 3 Successful 9 | . . . 1 . 1 2 2 1 1 . 1 . Failed 14 | . . . . . . . 3 . 1 . 7 3 Catastrophic 6 | . . . . . . . 2 . . . 2 2 Database Lockouts . | . . . . . . . . . . . . . Manual 9 | . . . 1 . . . 4 . . . 4 . Terminals 14 | . . . . . . 2 4 1 . . 4 3 Fabricators 1 | . . . . . . . . . . . 1 . Repair Stations 4 | . . . . . . . . . 2 . 2 . Recycling Units . | . . . . . . . . . . . . . Scanalyzers . | . . . . . . . . . . . . . Garrison Access 3 | . . . . . 1 . 1 . . . 1 . Terminal Hacks 4 | . . . 1 . . 2 . 1 . . . . Emergency Access Points 1 | . . . . . . 1 . . . . . . Security Stations 2 | . . . . . . 1 . 1 . . . . EX-Prototype ID Bank 1 | . . . 1 . . . . . . . . . Fabricator Hacks . | . . . . . . . . . . . . . Repair Station Hacks 1 | . . . . . . . . . 1 . . . Refit 1 | . . . . . . . . . 1 . . . Recycling Unit Hacks . | . . . . . . . . . . . . . Scanalyzer . | . . . . . . . . . . . . . Garrison Access Hacks 3 | . . . . . 1 . 1 . . . 1 . Unlock Access 3 | . . . . . 1 . 1 . . . 1 . Unauthorized Hacks 1 | . . . . . . . 1 . . . . . Terminals 1 | . . . . . . . 1 . . . . . Botnet 1 | . . . . . . . 1 . . . . . Fabricators . | . . . . . . . . . . . . . Repair Stations . | . . . . . . . . . . . . . Recycling Units . | . . . . . . . . . . . . . Scanalyzers . | . . . . . . . . . . . . . Garrison Access . | . . . . . . . . . . . . . Data Cores Recovered . | . . . . . . . . . . . . . Used . | . . . . . . . . . . . . . Hacking Detections 10 | . . . . . . 1 2 1 1 . 4 1 Full Trace Events 3 | . . . . . . . 1 . . . 1 1 Feedback Events 1 | . . . . . . . . . . . 1 . Hackware Fried 1 | . . . . . . . . . . . 1 . Feedback Blocked . | . . . . . . . . . . . . . Robot Schematics Acquired . | . . . . . . . . . . . . . Robots Built . | . . . . . . . . . . . . . Authchips . | . . . . . . . . . . . . . Time . | . . . . . . . . . . . . . Total Robot Build Rating . | . . . . . . . . . . . . . Part Schematics Acquired . | . . . . . . . . . . . . . Parts Built . | . . . . . . . . . . . . . Authchips . | . . . . . . . . . . . . . Time . | . . . . . . . . . . . . . Total Part Build Rating . | . . . . . . . . . . . . . Parts Repaired . | . . . . . . . . . . . . . Time . | . . . . . . . . . . . . . Parts Recycled . | . . . . . . . . . . . . . Recycled Matter . | . . . . . . . . . . . . . Retrieved Matter . | . . . . . . . . . . . . . Retrieved Components . | . . . . . . . . . . . . . Parts Scanalyzed . | . . . . . . . . . . . . . Part Schematics Acquired . | . . . . . . . . . . . . . Parts Damaged . | . . . . . . . . . . . . . Bothacking | -11 -10 -10 -10 -9 -8 -8 -8 -8 -7 -7 -7 -7 ------------ Run | Jun Mat Min Exi Min Mat Gar Mat Gar Fac Was Fac Gar Used RIF Installer 3 | . . . . . . 1 . 1 . . . 1 Watcher Feeds 1 | . . . . . . . . 1 . . . . Alert ID Control 1 | . . . . . . . . . . . . 1 Robots Hacked 12 | . . . . . . . 2 3 2 2 . 3 Non-combat 3 | . . . . . . . 1 1 1 . . . Combat 9 | . . . . . . . 1 2 1 2 . 3 Robot Hacks Applied 13 | . . . . . . . 2 3 2 2 . 4 ignore_targets 1 | . . . . . . . . . . 1 . . mark_system 1 | . . . . . . . . . . . . 1 overload_power 1 | . . . . . . . . . . 1 . . amplify_resonance 2 | . . . . . . . . 1 1 . . . overwrite_iff 3 | . . . . . . . 1 . . . . 2 formatsys_low 1 | . . . . . . . 1 . . . . . formatsys_high 4 | . . . . . . . . 2 1 . . 1 Relay Couplers Released 37 | . . . . . . 28 . 5 . . . 4 Machine Destruction 37 | . . . . . . 28 . 5 . . . 4 Attached 8 | . . . . . . . 2 2 1 . . 3 Fabnet Peak Effective % . | . . . . . . . . . . . . . Robots Rewired 3 | . . . . . . 3 . . . . . . Allies Hacked . | . . . . . . . . . . . . . Hacks Repelled . | . . . . . . . . . . . . . Allies | -11 -10 -10 -10 -9 -8 -8 -8 -8 -7 -7 -7 -7 -------- Run | Jun Mat Min Exi Min Mat Gar Mat Gar Fac Was Fac Gar Total Allies 17 | . . 2 . . . 5 2 2 1 . . 5 Largest Group 3 | . . 2 . . . 3 2 1 1 1 . 3 Highest-Rated Group 78 | . . 38 . . . 78 78 16 32 32 . 74 Highest-Rated Ally 39 | . . 31 . . . 39 39 16 32 32 . 32 Total Orders 7 | . . . . . . 2 3 2 . . . . STAY 4 | . . . . . . 1 2 1 . . . . FOLLOW 1 | . . . . . . . . 1 . . . . GUARD 1 | . . . . . . 1 . . . . . . COLLECT 1 | . . . . . . . 1 . . . . . Ally Attacks 136 | . . . 53 . . 23 15 16 . 9 . 20 Total Damage 4037 | . . . 2822 . . 144 154 187 . 372 . 358 Kills 42 | . . . 28 . . 1 3 3 . 1 . 6 Allies Corrupted 2 | . . . 2 . . . . . . . . . Allies Melted . | . . . . . . . . . . . . . Turrets Deployed 3 | . . . 3 . . . . . . . . . Intel | -11 -10 -10 -10 -9 -8 -8 -8 -8 -7 -7 -7 -7 ------- Run | Jun Mat Min Exi Min Mat Gar Mat Gar Fac Was Fac Gar Robot Analysis Total . | . . . . . . . . . . . . . Derelict Logs Recovered 1 | . . . . 1 . . . . . . . . Drone Launches . | . . . . . . . . . . . . . Drone Recoveries . | . . . . . . . . . . . . . Exploration | -11 -10 -10 -10 -9 -8 -8 -8 -8 -7 -7 -7 -7 ------------- Run | Jun Mat Min Exi Min Mat Gar Mat Gar Fac Was Fac Gar Turns Passed 8514 | 56 211 477 402 145 35 3083 511 2003 477 85 430 599 Spaces Moved 5062 | 43 171 358 492 172 47 1332 470 645 272 81 585 394 Core 205 | 7 . . . . . . . 141 . . . 57 Treads . | . . . . . . . . . . . . . Legs 285 | 36 90 . . . . 39 . . 114 . . 6 Wheels . | . . . . . . . . . . . . . Hover 4571 | . 81 358 492 172 47 1293 470 503 158 81 585 331 Flight 1 | . . . . . . . . 1 . . . . Fastest Speed 50 | 50 56 56 56 77 59 53 66 50 66 66 53 50 Average Speed 76 | 108 89 84 63 77 59 66 69 105 129 74 57 62 Slowest Speed 250 | 120 120 116 80 77 59 120 76 250 200 76 70 120 Overloaded Moves . | . . . . . . . . . . . . . Propulsion Burnouts . | . . . . . . . . . . . . . Robots Hopped . | . . . . . . . . . . . . . Cave-ins Triggered . | . . . . . . . . . . . . . Exploration Rate (%) 37 | 3 31 52 62 45 10 81 33 44 6 67 16 33 Regions Visited 12 Branch Regions 3 Pre-discovered Areas . | . . . . . . . . . . . . . Known Exits Taken 3 | . . . . . 1 . 1 . . . 1 . Unknown Exits Taken 5 | 1 1 1 1 1 . . . . . . . . Scrap Searched 3 | . . 1 . 2 . . . . . . . . Spaces Dug 16 | . . . . . . 12 3 . . . . 1 Terrain Destroyed 97 | . . . . 1 . 13 6 76 . . . 1 Melee 12 | . . . . . . 12 . . . . . . Projectile 9 | . . . . 1 . 1 6 . . . . 1 AOE 76 | . . . . . . . . 76 . . . . Terrain Rammed . | . . . . . . . . . . . . . Walls Destroyed . | . . . . . . . . . . . . . Machines Disabled . | . . . . . . . . . . . . . Actions | -11 -10 -10 -10 -9 -8 -8 -8 -8 -7 -7 -7 -7 --------- Run | Jun Mat Min Exi Min Mat Gar Mat Gar Fac Was Fac Gar Total 9243 | 50 204 505 568 178 52 3324 642 1917 394 100 667 642 Wait 3496 | . 2 96 27 . 2 1745 147 1149 106 13 69 140 Move 5049 | 42 170 357 491 171 46 1330 469 643 272 80 584 394 Hop . | . . . . . . . . . . . . . Pick Up 58 | 1 7 7 10 2 . 16 2 6 4 . . 3 Fast Attach 68 | 6 5 2 8 . . 16 1 11 5 . 10 4 Attach 25 | . . 1 4 1 2 7 2 4 1 . . 3 Detach 2 | . . . . . . . . . 1 . . 1 Swap 15 | . . 3 . . . 5 1 2 . . . 4 Drop 70 | 1 7 10 14 1 1 14 3 10 2 . 2 5 Fire 232 | . 13 25 14 3 1 52 17 53 3 6 2 43 Melee 119 | . . . . . . 84 . . . . . 35 Ram 2 | . . . . . . . . . . 1 . 1 Kick 1 | . . . . . . . . . . . . 1 Crush . | . . . . . . . . . . . . . Escape Stasis 67 | . . . . . . 20 . 39 . . . 8 Rewire 35 | . . . . . . 35 . . . . . . Trap 4 | . . 4 . . . . . . . . . . Miscellaneous . | . . . . . . . . . . . . . Route ------- -11/Junkyard -10/Materials (discovered 2 exits: [*Mat] / [*Min]) -10/Mines (discovered 3 exits: [*Mat x2] / *Exi) -10/Exiles (discovered 2 exits: [*Min x2]) -9/Mines -8/Materials -8/Garrison (discovered 4 exits: *Mat x4) -8/Materials (discovered 2 exits: *Fac / Gar) -8/Garrison -7/Factory -7/Waste -7/Factory -7/Garrison (discovered 1 exit: *Fac) History --------- Turn | Location | Event 8 | -11/Junkyard | Discovered new exit (range 14) 57 | -11/Junkyard | Entered Materials 186 | -10/Materials | Discovered new exit (range 15) 235 | -10/Materials | Discovered new exit (range 16) 268 | -10/Materials | Entered Mines 281 | -10/Mines | Found a hidden stash of uninstalled traps 324 | -10/Mines | Discovered new exit (range 5) 326 | -10/Mines | Build established: Mutant 705 | -10/Mines | Discovered new exit (range 9) 743 | -10/Mines | Deemed a non-threat by the Exiles lab entrance 743 | -10/Mines | Discovered new exit (range 5) 745 | -10/Mines | Entered Exiles 753 | -10/Exiles | Discovered new exit (range 15) 760 | -10/Exiles | Met 8R-AWN 769 | -10/Exiles | Met EX-HEX 788 | -10/Exiles | Met EX-BIN 796 | -10/Exiles | Aligned with FarCom system 796 | -10/Exiles | Given EX-Vault access code 813 | -10/Exiles | Opened EX-Vault 816 | -10/Exiles | Found Deploy-a-Sentry 829 | -10/Exiles | Warned to stay clear of 0b10 Research branches 838 | -10/Exiles | Exiles lab attacked by MAIN.C 844 | -10/Exiles | DAS Turret deployed 874 | -10/Exiles | Found Deploy-a-Sentry 876 | -10/Exiles | Found Deploy-a-Sentry 915 | -10/Exiles | DAS Turret deployed 920 | -10/Exiles | DAS Turret deployed 1038 | -10/Exiles | Core integrity fell below 50% 1140 | -10/Exiles | Discovered new exit (range 10) 1147 | -10/Exiles | Entered Mines 1151 | -9/Mines | Met a Derelict bent on vengeance 1154 | -9/Mines | Learned Materials garrison access intel 1180 | -9/Mines | Build established: Scavenger-Mutant 1282 | -9/Mines | Discovered new exit (range 9) 1291 | -9/Mines | Received a Mining Laser from a helpful Derelict 1292 | -9/Mines | Entered Materials 1292 | -8/Materials | Evolved 4 slots: Propulsion x2, Utility x2 1293 | -8/Materials | Loaded intel: 1 garrison access location 1327 | -8/Materials | Identified exit to Garrison 1327 | -8/Materials | Entered Garrison 1542 | -8/Garrison | Triggered checkpoint 1899 | -8/Garrison | Discovered new exit (range 9) 1928 | -8/Garrison | Learned Materials security intel 1953 | -8/Garrison | Triggered checkpoint 2253 | -8/Garrison | Discovered new exit (range 10) 2312 | -8/Garrison | Triggered checkpoint 2352 | -8/Garrison | Garrison Relay disabled 2388 | -8/Garrison | Triggered checkpoint 2574 | -8/Garrison | Discovered new exit (range 6) 3256 | -8/Garrison | Lost 3 parts (1p2n) 3307 | -8/Garrison | Garrison Relay disabled 3310 | -8/Garrison | Garrison Relay disabled 3315 | -8/Garrison | Garrison Relay disabled 3319 | -8/Garrison | Garrison Relay disabled 3368 | -8/Garrison | Triggered checkpoint 4067 | -8/Garrison | Lost 3 parts (3n) 4133 | -8/Garrison | Lost 6 parts (1p2n2u1w) 4169 | -8/Garrison | Discovered new exit (range 10) 4206 | -8/Garrison | Rescued a captive Derelict 4208 | -8/Garrison | Rescued a captive Derelict 4250 | -8/Garrison | Garrison Relay disabled 4284 | -8/Garrison | Installed Relay Interface Framework 4410 | -8/Garrison | Entered Materials 4410 | -8/Materials | Accompanied by 2 allies 4482 | -8/Materials | Discovered new exit (range 15) 4673 | -8/Materials | Build established: Mutant 4810 | -8/Materials | First assault squad dispatched 4912 | -8/Materials | Core integrity fell below 50% 4920 | -8/Materials | Identified exit to Garrison 4921 | -8/Materials | Entered Garrison 5124 | -8/Garrison | Triggered checkpoint 5147 | -8/Garrison | Garrison Relay disabled 5182 | -8/Garrison | Learned Factory security intel 5234 | -8/Garrison | Triggered checkpoint 5439 | -8/Garrison | Build established: Bothacker-Mutant 6166 | -8/Garrison | Build established: Mutant 6569 | -8/Garrison | Build established: Bothacker-Mutant 6634 | -8/Garrison | Discovered new exit (range 14) 6709 | -8/Garrison | Expanded RIF knowledge: Watcher Feeds 6736 | -8/Garrison | Phase Generator disabled 6872 | -8/Garrison | Triggered checkpoint 6904 | -8/Garrison | Core integrity fell below 20% 6924 | -8/Garrison | Entered Factory 6924 | -7/Factory | Evolved 2 slots: Power x1, Utility x1 7076 | -7/Factory | Discovered new exit (range 15) 7104 | -7/Factory | Identified exit to Factory 7401 | -7/Factory | Sucked down chute 7401 | -7/Factory | Entered Waste 7410 | -7/Waste | 1 allies followed down the chute 7416 | -7/Waste | EMP discharged 7416 | -7/Waste | System corruption reached 10% 7418 | -7/Waste | Spotted C-40 Crusher 7436 | -7/Waste | Allies destroyed C-40 Crusher 7439 | -7/Waste | Spotted C-40 Crusher 7463 | -7/Waste | Spotted C-40 Crusher 7465 | -7/Waste | Spotted C-40 Crusher 7470 | -7/Waste | Spotted C-40 Crusher 7474 | -7/Waste | Discovered new exit (range 16) 7479 | -7/Waste | Crushed by Compactor (2 parts destroyed, 1 dropped) 7486 | -7/Waste | Entered Factory 7510 | -7/Factory | Lost 3 parts (1p1u1w) 7784 | -7/Factory | Adv. Hacking Suite fried by hacking feedback 7916 | -7/Factory | Identified exit to Garrison 7916 | -7/Factory | Entered Garrison 7940 | -7/Garrison | Triggered checkpoint 7976 | -7/Garrison | Garrison Relay disabled 7999 | -7/Garrison | Expanded RIF knowledge: Alert ID Control 8045 | -7/Garrison | Rescued a captive Derelict 8045 | -7/Garrison | Rescued a captive Derelict 8149 | -7/Garrison | Assembled breached garrison interior 8315 | -7/Garrison | Destroyed 7 combat bots 8386 | -7/Garrison | Core integrity fell below 50% 8432 | -7/Garrison | Lost 3 parts (1p1n1w) 8489 | -7/Garrison | Released all parts (7) 8490 | -7/Garrison | Core integrity fell below 20% 8506 | -7/Garrison | Discovered exit to Factory (range 15) 8515 | -7/Garrison | Destroyed by B-48 Gladiator with Mace Last Messages --------------- 08506_ EXIT=FOUND: FACTORY 08507_ as-85908 destroyed. 08507_ Y-54 Guardian shuts down. 08507_ Triggered Stasis Trap. 08507_ A bubble of rippling energy engulfs the area. 08507_ Field strength at 94. 08508_ Field strength at 88. 08509_ System corrupted: IFF burst signal emitted. 08509_ Field strength at 82. 08509_ as-23346 sneak attacks. 08510_ Field strength at 76. 08511_ Field strength at 70. 08511_ as-52419 suffers critical hit (Burn). 08511_ as-23346 sneak attacks. 08512_ Field strength at 64. 08513_ Field strength at 47. 08514_ Field strength at 36. 08514_ as-23346 sneak attacks. 08514_ Y-54 Guardian destroyed. 08515_ Field strength at 30. Map ----- +----------------------------------------------------+ | ??????????????????????????????????????????????? | | ??????????????????????????????????????????????? | | ??????????????????????????????????????????????? | | ??????????????????????????????????????????????? | | ??????????????????????????????????????????????? | | ??????????????????????????????????????????????? | | ??????????????????????????????????????????????? | | ??????????????????????????????????????????????? | | ??????????????????????????????????????????????? | | ??????????????????????????????????????????????? | | ??????????????????????????????????????????????? | | ??????????????????????????????????????????????? | | ??????????????????????????????????????????????? | | ??????????????????????????????????????????????? | | ??????????????????????????????????????????????? | | ??????????????????????????????????????????????? | | ????????????????????????????????????????????? ? | | ????????????????????????????????????????????? # | | ????????????????????????????????????????????? # | | ????????????????????????????????????????????? # | | ????????????????????????????????????????????? # | | ????????????????????????????????????????????? # | | ????????????????????????????????????????????? # | | ????????????????????????????????????????????# # | | ????????# < ################################# # | | ????????# @ # | | ????????# bb g ^ %% # | | ????????# g !aa% # | | ????????########## ##### ##### =%###### # | | ?????????????????# ????# #???# #????# # | | ?????????????????###?????#####???#####????# # | | ??????????????????????????????????????????# # | | ??????????????????????????????????????????# # | | ??????????????????????????????????????????# # | | ??????????????????????????????????????????# # | | ??????????????????????????????????????????# | | ??????????????????????????????????????????# | | ??????????????????????????????????????????# | | ??????????????????????????????????????????# # | | ??????????????????????????????????????????# # | | ?????????????????????????????????????????! | | ????????????????????????????????????????#%[ | | ????????????????????????????????????????#=%[ | | ????????????????????????????????????????#=% % | | ????????????????????????????????????????### # | | ??????????????????????????????????????????# % ? | | ?????????????????????????????????????????? % ? | | ?????????????????????????????????????????? #%#? | | ??????????????????????????????????????????##%?% | | ???????????????????????????????????????????#*?? | +----------------------------------------------------+ Best States ------------- Heat Dissipation 62 Energy Generation 25 Energy Capacity 290 Matter Stores 300 Matter Capacity 300 Sight Range 16 Terrain Scan Density 10 ECM Strength 1 Armor Coverage 150 Core Shielding 20 Utility Shielding 66 Evasion (%) 55 Melee Accuracy 10 Launcher Accuracy 20 Target Analysis 5 Core Analysis 6 Offensive Hacking 14 Relay Coupler Types 3 Relay Coupler Value 85 Authchip Count 2 Item Schematics ----------------- None Robot Schematics ------------------ None Fabricated ------------ Nothing Alien Tech Used ----------------- None Achievements -------------- None Challenges ------------ None Game ------ Seed RecoilTransportSubcomponent Manual? 0 Play Time 00:58:24 Cumulative 387.2 hours Start 2023.03.02 @ 20:23:12 End 2023.03.02 @ 21:27:29 Sessions 1 Manual Loads 0 Difficulty Rogue Special Mode None Game No. 694 Rogue 539 Adventurer 148 Explorer 7 Win Type - Total 15 Types 13/0/1/1/0/0/0/0/0 Lore% 77 Gallery% 87 Achievement% 72 Wizard Run 0 Options --------- ASCII 0 Keyboard 0 Movement Numpad Keybinds 0 Fullscreen 2 Font 18/SmallcapsGlow Map View 76x50 Tactical HUD 1 Map Filters NONE Filters NONE Steam 1 RUN: 3293a877-1c48-4a70-b23c-1ea1c5d72d2e